[Event "Early-Titled-Tuesday-Blitz-January-16-2024"]
[Site "Chess.com"]
[Date "2024.01.16"]
[Round "11"]
[White "Egor_Koshulyan"]
[Black "Grossboss19"]
[Result "1/2-1/2"]
[WhiteElo "2691"]
[BlackElo "2559"]
[TimeControl "180+1"]
[EndTime "10:08:56 PST"]
[Termination "Game drawn by repetition"]

1. e4 {[%clk 0:03:00.9]} 1... c6 {[%clk 0:02:24]} 2. d4 {[%clk 0:02:59]} 2... d5
{[%clk 0:02:24.9]} 3. e5 {[%clk 0:02:59.9]} 3... c5 {[%clk 0:02:19.8]} 4. dxc5
{[%clk 0:03:00.8]} 4... e6 {[%clk 0:02:19.9]} 5. a3 {[%clk 0:03:01.4]} 5... a5
{[%clk 0:02:19.2]} 6. Be3 {[%clk 0:02:45.1]} 6... Qc7 {[%clk 0:02:16.4]} 7. Qd4
{[%clk 0:02:35.8]} 7... Ne7 {[%clk 0:02:08.9]} 8. Bb5+ {[%clk 0:02:34.7]} 8...
Bd7 {[%clk 0:02:07.3]} 9. Bxd7+ {[%clk 0:02:34.5]} 9... Nxd7 {[%clk 0:02:07]}
10. Nf3 {[%clk 0:02:33.3]} 10... Nc6 {[%clk 0:01:44.4]} 11. Qc3 {[%clk
0:02:25.9]} 11... Ncxe5 {[%clk 0:01:32.1]} 12. Nxe5 {[%clk 0:02:26.8]} 12...
Qxe5 {[%clk 0:01:29.5]} 13. c6 {[%clk 0:01:30.6]} 13... Qxc3+ {[%clk 0:01:27.2]}
14. Nxc3 {[%clk 0:01:31.5]} 14... bxc6 {[%clk 0:01:27.1]} 15. O-O {[%clk
0:01:32.4]} 15... Be7 {[%clk 0:01:23.4]} 16. Na4 {[%clk 0:01:32.6]} 16... O-O
{[%clk 0:01:22.9]} 17. c3 {[%clk 0:01:33.5]} 17... c5 {[%clk 0:01:15.8]} 18. f4
{[%clk 0:01:32.4]} 18... Rab8 {[%clk 0:01:08.9]} 19. Rad1 {[%clk 0:01:28.7]}
19... g6 {[%clk 0:01:07.8]} 20. g4 {[%clk 0:01:28.6]} 20... f5 {[%clk
0:01:07.9]} 21. h3 {[%clk 0:01:27.8]} 21... Rfc8 {[%clk 0:01:06.3]} 22. g5
{[%clk 0:01:24.8]} 22... Nb6 {[%clk 0:00:59.4]} 23. Nxb6 {[%clk 0:01:25.4]}
23... Rxb6 {[%clk 0:01:00.3]} 24. Rd2 {[%clk 0:01:25.5]} 24... Rcb8 {[%clk
0:00:57.6]} 25. Rff2 {[%clk 0:01:26.1]} 25... Rb3 {[%clk 0:00:54.2]} 26. Rfe2
{[%clk 0:01:25.3]} 26... Kf7 {[%clk 0:00:53.8]} 27. Kg2 {[%clk 0:01:19.4]} 27...
a4 {[%clk 0:00:53.6]} 28. Kf3 {[%clk 0:01:19.7]} 28... h5 {[%clk 0:00:47.9]} 29.
h4 {[%clk 0:01:19.9]} 29... R8b7 {[%clk 0:00:33.3]} 30. Kg2 {[%clk 0:01:17.6]}
30... Bf8 {[%clk 0:00:30.8]} 31. Kf3 {[%clk 0:01:17.1]} 31... Rc7 {[%clk
0:00:27.2]} 32. Kg2 {[%clk 0:00:59.1]} 32... Bg7 {[%clk 0:00:27.5]} 33. Bf2
{[%clk 0:00:59.5]} 33... Rc6 {[%clk 0:00:22]} 34. Rd1 {[%clk 0:00:55.3]} 34...
Bf8 {[%clk 0:00:21.5]} 35. Be3 {[%clk 0:00:52.2]} 35... Bd6 {[%clk 0:00:20.2]}
36. Kf3 {[%clk 0:00:52.8]} 36... Bc7 {[%clk 0:00:19.4]} 37. Rdd2 {[%clk
0:00:49.2]} 37... Bb6 {[%clk 0:00:19.4]} 38. Kg2 {[%clk 0:00:47.2]} 38... Ba7
{[%clk 0:00:19.8]} 39. Bf2 {[%clk 0:00:45.9]} 39... Bb8 {[%clk 0:00:19.7]} 40.
Be3 {[%clk 0:00:43]} 40... Bc7 {[%clk 0:00:19.2]} 41. Kf3 {[%clk 0:00:42.2]}
41... Bd6 {[%clk 0:00:16]} 42. Kg2 {[%clk 0:00:39.8]} 42... Bc7 {[%clk
0:00:16.3]} 43. Kf3 {[%clk 0:00:39.9]} 1/2-1/2

[Event "Early-Titled-Tuesday-Blitz-January-16-2024"]
[Site "Chess.com"]
[Date "2024.01.16"]
[Round "11"]
[White "Njal28"]
[Black "MyDream003"]
[Result "1-0"]
[WhiteElo "3032"]
[BlackElo "2876"]
[TimeControl "180+1"]
[EndTime "10:08:58 PST"]
[Termination "Njal28 won on time"]

1. e4 {[%clk 0:03:00.9]} 1... e5 {[%clk 0:02:57.6]} 2. Nf3 {[%clk 0:03:01]} 2...
Nc6 {[%clk 0:02:57.9]} 3. Nc3 {[%clk 0:02:58.1]} 3... Nf6 {[%clk 0:02:58.1]} 4.
Nd5 {[%clk 0:02:58.6]} 4... d6 {[%clk 0:02:33]} 5. d4 {[%clk 0:02:57.9]} 5...
exd4 {[%clk 0:02:13.8]} 6. Nxd4 {[%clk 0:02:57.3]} 6... Nxd4 {[%clk 0:02:04.6]}
7. Qxd4 {[%clk 0:02:56]} 7... Be7 {[%clk 0:02:05.2]} 8. Bd3 {[%clk 0:02:46.3]}
8... Nxd5 {[%clk 0:02:03.4]} 9. Qxd5 {[%clk 0:02:40.2]} 9... O-O {[%clk
0:02:01]} 10. O-O {[%clk 0:02:40.2]} 10... Bf6 {[%clk 0:01:49]} 11. c3 {[%clk
0:02:40.4]} 11... c6 {[%clk 0:01:47.6]} 12. Qh5 {[%clk 0:02:38]} 12... g6 {[%clk
0:01:47.5]} 13. Qf3 {[%clk 0:02:36]} 13... Bg7 {[%clk 0:01:47.2]} 14. Rd1 {[%clk
0:02:34.3]} 14... Qe7 {[%clk 0:01:46.1]} 15. Bf4 {[%clk 0:02:34.3]} 15... Be6
{[%clk 0:01:44.6]} 16. Qg3 {[%clk 0:02:30.1]} 16... Rfd8 {[%clk 0:01:42]} 17.
Bg5 {[%clk 0:02:18.8]} 17... Bf6 {[%clk 0:01:39.1]} 18. Bxf6 {[%clk 0:02:18.5]}
18... Qxf6 {[%clk 0:01:40]} 19. f4 {[%clk 0:02:19]} 19... Kh8 {[%clk 0:01:31.7]}
20. Rf1 {[%clk 0:02:07.9]} 20... d5 {[%clk 0:01:18.7]} 21. e5 {[%clk 0:02:04.5]}
21... Qe7 {[%clk 0:01:18.9]} 22. Rae1 {[%clk 0:02:04]} 22... f5 {[%clk
0:01:15.3]} 23. exf6 {[%clk 0:02:02.1]} 23... Qxf6 {[%clk 0:01:15.7]} 24. Re5
{[%clk 0:02:00.5]} 24... Re8 {[%clk 0:01:14.1]} 25. h4 {[%clk 0:01:53]} 25...
Bf7 {[%clk 0:01:13]} 26. Rf3 {[%clk 0:01:31.3]} 26... Re7 {[%clk 0:01:07.6]} 27.
Rxe7 {[%clk 0:01:16]} 27... Qxe7 {[%clk 0:01:08.5]} 28. Re3 {[%clk 0:01:16.8]}
28... Qf6 {[%clk 0:01:02]} 29. Qg5 {[%clk 0:01:13.9]} 29... Qxg5 {[%clk
0:00:55.8]} 30. hxg5 {[%clk 0:01:14.8]} 30... Re8 {[%clk 0:00:56]} 31. Kf2
{[%clk 0:01:12.1]} 31... Kg7 {[%clk 0:00:55.9]} 32. Rxe8 {[%clk 0:01:08.8]}
32... Bxe8 {[%clk 0:00:56.8]} 33. b4 {[%clk 0:01:09.2]} 33... Bd7 {[%clk
0:00:44.9]} 34. Ke3 {[%clk 0:01:06.9]} 34... Kf7 {[%clk 0:00:45.2]} 35. c4
{[%clk 0:01:05.7]} 35... dxc4 {[%clk 0:00:22.2]} 36. Bxc4+ {[%clk 0:01:06.6]}
36... Be6 {[%clk 0:00:12]} 37. Bxe6+ {[%clk 0:01:05.8]} 37... Kxe6 {[%clk
0:00:12.9]} 38. Ke4 {[%clk 0:01:06.6]} 38... b6 {[%clk 0:00:12.6]} 39. g4 {[%clk
0:01:05]} 39... Kd6 {[%clk 0:00:10.6]} 40. f5 {[%clk 0:01:05.1]} 40... gxf5+
{[%clk 0:00:02.6]} 41. gxf5 {[%clk 0:01:05.2]} 41... Ke7 {[%clk 0:00:02.7]} 42.
Ke5 {[%clk 0:01:02.3]} 42... a6 {[%clk 0:00:01.7]} 43. f6+ {[%clk 0:00:56.7]}
43... Kf7 {[%clk 0:00:01.7]} 44. Kd6 {[%clk 0:00:57.4]} 1-0

[Event "Early-Titled-Tuesday-Blitz-January-16-2024"]
[Site "Chess.com"]
[Date "2024.01.16"]
[Round "11"]
[White "JonasEilenberg"]
[Black "Willi_Skibbe"]
[Result "1-0"]
[WhiteElo "2536"]
[BlackElo "2402"]
[TimeControl "180+1"]
[EndTime "10:09:05 PST"]
[Termination "JonasEilenberg won on time"]

1. d4 {[%clk 0:03:00.5]} 1... d5 {[%clk 0:02:58.4]} 2. Nc3 {[%clk 0:03:00.7]}
2... Nf6 {[%clk 0:02:55.5]} 3. Bf4 {[%clk 0:03:00.5]} 3... a6 {[%clk 0:02:54.8]}
4. e3 {[%clk 0:02:59.8]} 4... b5 {[%clk 0:02:54.1]} 5. Bd3 {[%clk 0:03:00]} 5...
e6 {[%clk 0:02:52.1]} 6. Nf3 {[%clk 0:02:59.4]} 6... c5 {[%clk 0:02:52.5]} 7.
dxc5 {[%clk 0:03:00.3]} 7... Bxc5 {[%clk 0:02:51.8]} 8. O-O {[%clk 0:03:00.9]}
8... Nc6 {[%clk 0:02:52.2]} 9. Ne2 {[%clk 0:02:57.6]} 9... Bb7 {[%clk 0:02:51]}
10. Bg3 {[%clk 0:02:57.8]} 10... Nb4 {[%clk 0:02:50.8]} 11. a3 {[%clk
0:02:54.1]} 11... Nxd3 {[%clk 0:02:50.9]} 12. cxd3 {[%clk 0:02:55]} 12... Be7
{[%clk 0:02:50.8]} 13. Rc1 {[%clk 0:02:54.8]} 13... O-O {[%clk 0:02:50.5]} 14.
Rc7 {[%clk 0:02:51.9]} 14... Bd6 {[%clk 0:02:24.7]} 15. Bxd6 {[%clk 0:02:45.3]}
15... Qxd6 {[%clk 0:02:25.6]} 16. Qc2 {[%clk 0:02:42.2]} 16... Rac8 {[%clk
0:02:18.5]} 17. Rc1 {[%clk 0:02:42.4]} 17... g6 {[%clk 0:02:02.8]} 18. b4 {[%clk
0:02:27.6]} 18... Rfd8 {[%clk 0:01:49.5]} 19. h3 {[%clk 0:02:25.4]} 19... Ne8
{[%clk 0:01:48.9]} 20. Rc5 {[%clk 0:02:26]} 20... e5 {[%clk 0:01:32.2]} 21. d4
{[%clk 0:02:18]} 21... e4 {[%clk 0:01:29.8]} 22. Nd2 {[%clk 0:02:17.6]} 22...
Qd7 {[%clk 0:01:25.4]} 23. Nb3 {[%clk 0:02:15.9]} 23... Nd6 {[%clk 0:01:22.4]}
24. Na5 {[%clk 0:02:16.4]} 24... Nc4 {[%clk 0:01:20.7]} 25. Nxc4 {[%clk
0:02:15.3]} 25... bxc4 {[%clk 0:01:19.8]} 26. Nc3 {[%clk 0:02:13.7]} 26... Bc6
{[%clk 0:01:15]} 27. a4 {[%clk 0:02:11.6]} 27... Rb8 {[%clk 0:01:14.5]} 28. Rb1
{[%clk 0:02:09.8]} 28... Rb6 {[%clk 0:01:03.5]} 29. b5 {[%clk 0:02:04]} 29...
axb5 {[%clk 0:01:02.8]} 30. axb5 {[%clk 0:02:04.5]} 30... Bb7 {[%clk 0:01:02.1]}
31. Ra1 {[%clk 0:01:59.1]} 31... Rb8 {[%clk 0:00:50.5]} 32. Ra7 {[%clk
0:01:58.2]} 32... Qd6 {[%clk 0:00:50.2]} 33. Qa4 {[%clk 0:01:55]} 33... Bc8
{[%clk 0:00:48]} 34. Rxd5 {[%clk 0:01:50.5]} 34... Qf8 {[%clk 0:00:35.6]} 35.
Rc5 {[%clk 0:01:42.8]} 35... Qe8 {[%clk 0:00:27.7]} 36. Qxc4 {[%clk 0:01:38.7]}
36... Be6 {[%clk 0:00:26.9]} 37. d5 {[%clk 0:01:39]} 37... Bd7 {[%clk
0:00:26.1]} 38. Qxe4 {[%clk 0:01:11.6]} 38... Qxe4 {[%clk 0:00:17.2]} 39. Nxe4
{[%clk 0:01:12.5]} 39... Bxb5 {[%clk 0:00:15.4]} 40. d6 {[%clk 0:01:12.7]} 40...
R6b7 {[%clk 0:00:08.7]} 41. Rxb7 {[%clk 0:00:48.6]} 41... Rxb7 {[%clk
0:00:07.8]} 42. Rc7 {[%clk 0:00:47.7]} 1-0

[Event "Early-Titled-Tuesday-Blitz-January-16-2024"]
[Site "Chess.com"]
[Date "2024.01.16"]
[Round "11"]
[White "francyIM"]
[Black "IMRosen"]
[Result "0-1"]
[WhiteElo "2829"]
[BlackElo "2678"]
[TimeControl "180+1"]
[EndTime "10:09:09 PST"]
[Termination "IMRosen won by resignation"]

1. e4 {[%clk 0:03:00.9]} 1... c5 {[%clk 0:02:58.3]} 2. Nf3 {[%clk 0:02:58]} 2...
Nc6 {[%clk 0:02:58.5]} 3. g3 {[%clk 0:02:52.4]} 3... e5 {[%clk 0:02:50.7]} 4.
Bg2 {[%clk 0:02:52.1]} 4... g6 {[%clk 0:02:49.4]} 5. d3 {[%clk 0:02:51.8]} 5...
Bg7 {[%clk 0:02:49.8]} 6. O-O {[%clk 0:02:52.5]} 6... Nge7 {[%clk 0:02:49.9]} 7.
c3 {[%clk 0:02:48.2]} 7... O-O {[%clk 0:02:49.5]} 8. Re1 {[%clk 0:02:44.4]} 8...
h6 {[%clk 0:02:49.3]} 9. Na3 {[%clk 0:02:43.9]} 9... d6 {[%clk 0:02:49.6]} 10.
d4 {[%clk 0:02:40.7]} 10... cxd4 {[%clk 0:02:46.2]} 11. cxd4 {[%clk 0:02:40.9]}
11... Bg4 {[%clk 0:02:47]} 12. d5 {[%clk 0:02:39.4]} 12... Nd4 {[%clk
0:02:46.8]} 13. Nc2 {[%clk 0:02:39.3]} 13... Nxc2 {[%clk 0:02:07.7]} 14. Qxc2
{[%clk 0:02:36]} 14... Rc8 {[%clk 0:02:07.3]} 15. Qb3 {[%clk 0:02:35.3]} 15...
Qa5 {[%clk 0:02:04.2]} 16. Bd2 {[%clk 0:02:34.4]} 16... Qa6 {[%clk 0:02:04.2]}
17. Bb4 {[%clk 0:02:27.8]} 17... f5 {[%clk 0:01:46.7]} 18. Nd2 {[%clk
0:02:26.8]} 18... f4 {[%clk 0:01:41.6]} 19. Bf1 {[%clk 0:02:24.2]} 19... Qb6
{[%clk 0:01:41.4]} 20. Nc4 {[%clk 0:02:22.8]} 20... Rxc4 {[%clk 0:01:31.1]} 21.
Bxc4 {[%clk 0:02:20.7]} 21... fxg3 {[%clk 0:01:31.2]} 22. Qxg3 {[%clk
0:02:20.6]} 22... Qxb4 {[%clk 0:01:26.8]} 23. Qxg4 {[%clk 0:02:20.9]} 23... Qxc4
{[%clk 0:01:19.4]} 24. Rac1 {[%clk 0:02:15.7]} 24... Qd4 {[%clk 0:01:18.9]} 25.
Re2 {[%clk 0:02:14.1]} 25... Kh7 {[%clk 0:00:55.8]} 26. h3 {[%clk 0:02:04]}
26... Qb6 {[%clk 0:00:47.1]} 27. Qd7 {[%clk 0:01:56.4]} 27... Bf6 {[%clk
0:00:29.2]} 28. Rc7 {[%clk 0:01:48.2]} 28... Rf7 {[%clk 0:00:15.1]} 29. Rec2
{[%clk 0:01:43.8]} 29... Bh4 {[%clk 0:00:12.5]} 30. Qe6 {[%clk 0:01:40.7]} 30...
Rxf2 {[%clk 0:00:05.2]} 31. R2c5 {[%clk 0:00:50.8]} 31... Rf8 {[%clk 0:00:02]}
32. Rxe7+ {[%clk 0:00:43.1]} 32... Bxe7 {[%clk 0:00:02.9]} 33. Qxe7+ {[%clk
0:00:43.1]} 33... Kg8 {[%clk 0:00:03.6]} 34. Qe6+ {[%clk 0:00:42.2]} 34... Rf7
{[%clk 0:00:03.9]} 35. b4 {[%clk 0:00:42]} 35... dxc5 {[%clk 0:00:03.8]} 36.
Qe8+ {[%clk 0:00:38.9]} 36... Kg7 {[%clk 0:00:03.9]} 37. Qxe5+ {[%clk
0:00:36.6]} 37... Qf6 {[%clk 0:00:03.5]} 0-1

[Event "Early-Titled-Tuesday-Blitz-January-16-2024"]
[Site "Chess.com"]
[Date "2024.01.16"]
[Round "11"]
[White "Predo63"]
[Black "Malikova777"]
[Result "1/2-1/2"]
[WhiteElo "2477"]
[BlackElo "2311"]
[TimeControl "180+1"]
[EndTime "10:09:11 PST"]
[Termination "Game drawn by repetition"]

1. d4 {[%clk 0:03:00.9]} 1... Nf6 {[%clk 0:02:55.8]} 2. Bg5 {[%clk 0:03:00.6]}
2... e6 {[%clk 0:02:54]} 3. e3 {[%clk 0:03:00.4]} 3... Be7 {[%clk 0:02:53.4]} 4.
Nd2 {[%clk 0:03:00.5]} 4... h6 {[%clk 0:02:53.9]} 5. Bh4 {[%clk 0:03:00]} 5...
d5 {[%clk 0:02:54.5]} 6. Bd3 {[%clk 0:03:00]} 6... c5 {[%clk 0:02:53.7]} 7. c3
{[%clk 0:02:59.1]} 7... c4 {[%clk 0:02:54]} 8. Bc2 {[%clk 0:02:58.9]} 8... b5
{[%clk 0:02:54.7]} 9. a3 {[%clk 0:02:58.7]} 9... Nc6 {[%clk 0:02:53.4]} 10. f4
{[%clk 0:02:58.8]} 10... a5 {[%clk 0:02:48.1]} 11. Ngf3 {[%clk 0:02:58.4]} 11...
Bb7 {[%clk 0:02:44.7]} 12. Ne5 {[%clk 0:02:58.2]} 12... Nd7 {[%clk 0:02:36.8]}
13. Bxe7 {[%clk 0:02:57.5]} 13... Qxe7 {[%clk 0:02:37.7]} 14. O-O {[%clk
0:02:56.9]} 14... a4 {[%clk 0:02:33.3]} 15. Nxd7 {[%clk 0:02:45.4]} 15... Kxd7
{[%clk 0:02:30.1]} 16. Qh5 {[%clk 0:02:45.8]} 16... f5 {[%clk 0:02:28.7]} 17.
Nf3 {[%clk 0:02:44.6]} 17... g6 {[%clk 0:02:20.2]} 18. Qxg6 {[%clk 0:02:37.8]}
18... Rag8 {[%clk 0:02:20.8]} 19. Qh5 {[%clk 0:02:38]} 19... Rg4 {[%clk
0:02:18]} 20. g3 {[%clk 0:02:29.1]} 20... Kc7 {[%clk 0:02:07.3]} 21. Kf2 {[%clk
0:02:28.2]} 21... Bc8 {[%clk 0:02:05.5]} 22. Bd1 {[%clk 0:02:19.7]} 22... Rg7
{[%clk 0:02:03.6]} 23. Qh4 {[%clk 0:02:16.8]} 23... Qf8 {[%clk 0:01:58.5]} 24.
Rg1 {[%clk 0:02:12.1]} 24... Bd7 {[%clk 0:01:57.7]} 25. Ne5 {[%clk 0:02:11.4]}
25... Nxe5 {[%clk 0:01:57.1]} 26. dxe5 {[%clk 0:02:11.7]} 26... h5 {[%clk
0:01:52.1]} 27. h3 {[%clk 0:01:59.3]} 27... Be8 {[%clk 0:01:50.9]} 28. Bf3
{[%clk 0:01:57.1]} 28... Qg8 {[%clk 0:01:48.7]} 29. Rg2 {[%clk 0:01:55.9]} 29...
Qf7 {[%clk 0:01:43.6]} 30. Rag1 {[%clk 0:01:55]} 30... Rhg8 {[%clk 0:01:43.7]}
31. g4 {[%clk 0:01:44.2]} 31... hxg4 {[%clk 0:01:34.9]} 32. hxg4 {[%clk
0:01:44.3]} 32... fxg4 {[%clk 0:01:35.1]} 33. Rxg4 {[%clk 0:01:42.3]} 33... Rxg4
{[%clk 0:01:27.4]} 34. Rxg4 {[%clk 0:01:41.6]} 34... Rxg4 {[%clk 0:01:25.7]} 35.
Bxg4 {[%clk 0:01:41.1]} 35... Qg6 {[%clk 0:01:22.2]} 36. Kg3 {[%clk 0:01:19.3]}
36... Bd7 {[%clk 0:01:12]} 37. Qe7 {[%clk 0:01:13.9]} 37... Qe4 {[%clk
0:01:11.4]} 38. Qc5+ {[%clk 0:01:10.1]} 38... Kd8 {[%clk 0:01:10.6]} 39. Qd6
{[%clk 0:00:59.9]} 39... Qxe3+ {[%clk 0:01:07.7]} 40. Kh4 {[%clk 0:01:00.1]}
40... Qxf4 {[%clk 0:01:07.1]} 41. Qb8+ {[%clk 0:00:59.6]} 41... Ke7 {[%clk
0:01:06.5]} 42. Qd6+ {[%clk 0:00:59.6]} 42... Ke8 {[%clk 0:01:06.8]} 43. Qb8+
{[%clk 0:00:59.7]} 43... Kf7 {[%clk 0:01:05.2]} 44. Qd6 {[%clk 0:00:59]} 44...
Qf2+ {[%clk 0:01:00.4]} 45. Kh3 {[%clk 0:00:58.5]} 45... Qe3+ {[%clk 0:00:52.4]}
46. Kh4 {[%clk 0:00:57.7]} 46... Ke8 {[%clk 0:00:35.6]} 47. Qb8+ {[%clk
0:00:52]} 47... Ke7 {[%clk 0:00:26.8]} 48. Qd6+ {[%clk 0:00:52]} 48... Kd8
{[%clk 0:00:22]} 49. Qb8+ {[%clk 0:00:50.1]} 49... Ke7 {[%clk 0:00:20.4]} 50.
Qd6+ {[%clk 0:00:49.7]} 50... Kd8 {[%clk 0:00:20.5]} 51. Qb8+ {[%clk 0:00:46.3]}
51... Ke7 {[%clk 0:00:20.8]} 1/2-1/2

[Event "Early-Titled-Tuesday-Blitz-January-16-2024"]
[Site "Chess.com"]
[Date "2024.01.16"]
[Round "11"]
[White "MightyGMpretender"]
[Black "Vesper2018"]
[Result "0-1"]
[WhiteElo "2817"]
[BlackElo "2588"]
[TimeControl "180+1"]
[EndTime "10:09:12 PST"]
[Termination "Vesper2018 won by checkmate"]

1. e4 {[%clk 0:03:00.9]} 1... c5 {[%clk 0:02:59.6]} 2. Nf3 {[%clk 0:03:00.7]}
2... d6 {[%clk 0:02:59.6]} 3. c4 {[%clk 0:02:59.8]} 3... Nf6 {[%clk 0:02:59]} 4.
Nc3 {[%clk 0:03:00.4]} 4... g6 {[%clk 0:02:57.6]} 5. d4 {[%clk 0:03:00.5]} 5...
cxd4 {[%clk 0:02:57.6]} 6. Nxd4 {[%clk 0:03:01.4]} 6... Bg7 {[%clk 0:02:58.3]}
7. Be2 {[%clk 0:03:01.9]} 7... O-O {[%clk 0:02:58.5]} 8. O-O {[%clk 0:03:02.2]}
8... Nc6 {[%clk 0:02:58.7]} 9. Be3 {[%clk 0:03:01.1]} 9... Bd7 {[%clk
0:02:50.9]} 10. Nc2 {[%clk 0:03:00.2]} 10... Ne5 {[%clk 0:02:40.8]} 11. f3
{[%clk 0:02:51.6]} 11... Rc8 {[%clk 0:02:39.8]} 12. b3 {[%clk 0:02:52.1]} 12...
a6 {[%clk 0:02:29.5]} 13. a4 {[%clk 0:02:50.7]} 13... Qa5 {[%clk 0:02:25.4]} 14.
Qd2 {[%clk 0:02:44.3]} 14... Nc6 {[%clk 0:02:06.8]} 15. Rab1 {[%clk 0:02:07]}
15... Ng4 {[%clk 0:01:43.3]} 16. b4 {[%clk 0:02:05]} 16... Qe5 {[%clk
0:01:43.4]} 17. fxg4 {[%clk 0:01:56.8]} 17... Qxc3 {[%clk 0:01:43.5]} 18. Qxc3
{[%clk 0:01:41.7]} 18... Bxc3 {[%clk 0:01:43.4]} 19. c5 {[%clk 0:01:42.5]} 19...
Ne5 {[%clk 0:01:35.4]} 20. h3 {[%clk 0:01:37.7]} 20... Bxa4 {[%clk 0:01:32.8]}
21. Nd4 {[%clk 0:01:33.3]} 21... dxc5 {[%clk 0:01:22.9]} 22. bxc5 {[%clk
0:01:33.3]} 22... Rfd8 {[%clk 0:01:22.5]} 23. Nf3 {[%clk 0:01:26.5]} 23... Bc6
{[%clk 0:01:14.5]} 24. Nxe5 {[%clk 0:01:15.7]} 24... Bxe5 {[%clk 0:01:14.7]} 25.
Bc4 {[%clk 0:01:06.2]} 25... e6 {[%clk 0:01:14.6]} 26. Rbe1 {[%clk 0:00:51.9]}
26... Bd4 {[%clk 0:01:05]} 27. Bf2 {[%clk 0:00:38.7]} 27... Bxf2+ {[%clk
0:01:00]} 28. Rxf2 {[%clk 0:00:38.2]} 28... Rd4 {[%clk 0:01:00.6]} 29. Be2
{[%clk 0:00:34.6]} 29... Rxe4 {[%clk 0:00:58.7]} 30. Ref1 {[%clk 0:00:33.8]}
30... Rxe2 {[%clk 0:00:52.1]} 31. Rxe2 {[%clk 0:00:25.5]} 31... Bb5 {[%clk
0:00:52.5]} 32. Rc2 {[%clk 0:00:22.1]} 32... Bxf1 {[%clk 0:00:50.5]} 33. Kxf1
{[%clk 0:00:23]} 33... Kf8 {[%clk 0:00:47.6]} 34. Ke2 {[%clk 0:00:23.3]} 34...
b6 {[%clk 0:00:37.8]} 35. c6 {[%clk 0:00:23.2]} 35... Ke7 {[%clk 0:00:37]} 36.
Kd3 {[%clk 0:00:17.5]} 36... Kd6 {[%clk 0:00:37.1]} 37. Ra2 {[%clk 0:00:12.9]}
37... a5 {[%clk 0:00:37.1]} 38. Kc4 {[%clk 0:00:13.1]} 38... Kxc6 {[%clk
0:00:36.3]} 39. g5 {[%clk 0:00:13.2]} 39... Rd8 {[%clk 0:00:31.7]} 40. Rf2
{[%clk 0:00:12.9]} 40... b5+ {[%clk 0:00:31.5]} 41. Kc3 {[%clk 0:00:13.1]} 41...
Rd7 {[%clk 0:00:31.9]} 42. h4 {[%clk 0:00:13]} 42... Kc5 {[%clk 0:00:31]} 43.
Re2 {[%clk 0:00:13.6]} 43... b4+ {[%clk 0:00:29.8]} 44. Kb3 {[%clk 0:00:14.1]}
44... Rd3+ {[%clk 0:00:29.7]} 45. Ka4 {[%clk 0:00:14.1]} 45... Ra3# {[%clk
0:00:29.3]} 0-1

[Event "Early-Titled-Tuesday-Blitz-January-16-2024"]
[Site "Chess.com"]
[Date "2024.01.16"]
[Round "11"]
[White "Schachmalanders"]
[Black "Yeritsyaan"]
[Result "0-1"]
[WhiteElo "2478"]
[BlackElo "2653"]
[TimeControl "180+1"]
[EndTime "10:09:14 PST"]
[Termination "Yeritsyaan won by resignation"]

1. e4 {[%clk 0:03:00.9]} 1... e6 {[%clk 0:02:59.1]} 2. d4 {[%clk 0:03:00.4]}
2... a6 {[%clk 0:02:58.9]} 3. c4 {[%clk 0:02:59.6]} 3... d5 {[%clk 0:02:58.8]}
4. Nc3 {[%clk 0:02:57.6]} 4... dxe4 {[%clk 0:02:52.1]} 5. Nxe4 {[%clk
0:02:56.7]} 5... Bb4+ {[%clk 0:02:52]} 6. Nc3 {[%clk 0:02:54.4]} 6... c5 {[%clk
0:02:44.6]} 7. d5 {[%clk 0:02:48.9]} 7... Nf6 {[%clk 0:02:41.5]} 8. Bd2 {[%clk
0:02:38.2]} 8... O-O {[%clk 0:02:31.3]} 9. Nf3 {[%clk 0:02:15.4]} 9... exd5
{[%clk 0:02:25.8]} 10. cxd5 {[%clk 0:02:15.6]} 10... Nxd5 {[%clk 0:02:17.5]} 11.
Nxd5 {[%clk 0:02:14.6]} 11... Qxd5 {[%clk 0:02:18.3]} 12. Bxb4 {[%clk
0:02:14.7]} 12... Qe4+ {[%clk 0:02:16.6]} 13. Be2 {[%clk 0:02:13.1]} 13... Qxb4+
{[%clk 0:02:17.2]} 14. Nd2 {[%clk 0:02:09.4]} 14... Rd8 {[%clk 0:02:07.4]} 15.
Qc2 {[%clk 0:02:03.4]} 15... Bf5 {[%clk 0:02:05.2]} 16. Qxf5 {[%clk 0:01:58.6]}
16... Qxd2+ {[%clk 0:02:05.1]} 17. Kf1 {[%clk 0:01:59.2]} 17... Nc6 {[%clk
0:02:05.7]} 18. Re1 {[%clk 0:01:35.8]} 18... Rd5 {[%clk 0:01:54.6]} 19. Qg4
{[%clk 0:01:26.7]} 19... Re8 {[%clk 0:01:53.3]} 20. g3 {[%clk 0:01:24]} 20...
Ne5 {[%clk 0:01:48.8]} 21. Qe4 {[%clk 0:01:17.3]} 21... Rd4 {[%clk 0:01:37.8]}
22. Qf5 {[%clk 0:01:11.2]} 22... Nd3 {[%clk 0:01:32.2]} 23. Bxd3 {[%clk
0:01:11.3]} 23... Qxe1+ {[%clk 0:01:26.8]} 24. Kg2 {[%clk 0:01:11.4]} 24... Qe6
{[%clk 0:01:24.1]} 25. Qxh7+ {[%clk 0:01:07.6]} 25... Kf8 {[%clk 0:01:24.6]} 26.
b3 {[%clk 0:00:28.3]} 26... Qd5+ {[%clk 0:01:22.7]} 27. f3 {[%clk 0:00:28]}
27... Re3 {[%clk 0:01:12.5]} 28. Be4 {[%clk 0:00:20.3]} 28... Rd2+ {[%clk
0:01:06.3]} 29. Kh3 {[%clk 0:00:20.5]} 29... Qe6+ {[%clk 0:01:05.6]} 30. Bf5
{[%clk 0:00:19.9]} 30... Qh6+ {[%clk 0:01:04.6]} 31. Qxh6 {[%clk 0:00:20.5]}
31... gxh6 {[%clk 0:01:05.5]} 32. Rc1 {[%clk 0:00:20.8]} 32... b6 {[%clk
0:01:05.3]} 33. Bc8 {[%clk 0:00:19.8]} 33... a5 {[%clk 0:01:05]} 34. Bb7 {[%clk
0:00:20.1]} 34... Rxa2 {[%clk 0:01:04.2]} 35. Rd1 {[%clk 0:00:20.8]} 35... Rb2
{[%clk 0:01:03.1]} 36. Bd5 {[%clk 0:00:20]} 36... Re5 {[%clk 0:00:56.6]} 37. Bc4
{[%clk 0:00:20.2]} 37... Rh5+ {[%clk 0:00:56]} 38. Kg4 {[%clk 0:00:20.8]} 38...
Rhxh2 {[%clk 0:00:56.3]} 39. Rd7 {[%clk 0:00:21.3]} 39... a4 {[%clk 0:00:46]}
40. Rxf7+ {[%clk 0:00:20.9]} 40... Ke8 {[%clk 0:00:46.6]} 41. Rb7 {[%clk
0:00:20.2]} 41... a3 {[%clk 0:00:43.5]} 42. Rxb6 {[%clk 0:00:20.1]} 42... a2
{[%clk 0:00:43.7]} 43. Ra6 {[%clk 0:00:20.8]} 43... Rb1 {[%clk 0:00:43.1]} 44.
Bb5+ {[%clk 0:00:17.2]} 44... Kd8 {[%clk 0:00:41.7]} 45. Rd6+ {[%clk 0:00:11]}
45... Kc7 {[%clk 0:00:41.1]} 46. Rc6+ {[%clk 0:00:11.5]} 46... Kb7 {[%clk
0:00:41.3]} 0-1